Cogmind - Beta 9.3 @@@ ROGUE MODE // 2019.12.27 @ 14:57:28 // Winter2019/RPGLIKE Player: Cipherpunk Result: Destroyed by G-47 Trooper with Particle Gun Performance ------------- Evolutions (2) 1000 Regions Visited (3) 600 Robots Destroyed (38) 190 Value Destroyed (1020) 1020 Prototype IDs (3) 60 Alien Tech Used (0) 0 Bonus (0) 0 TOTAL SCORE: 2870 Bonus ------- None Cogmind --------- Core Integrity 0/1050 Matter 182/350 Energy 280/280 System Corruption 0% Temperature Cool (9) Movement Walking (130) Location -8/Materials Parts ------- > --- POWER (1) -------- Heavy Ion Engine > --- PROPULSION (3) --- Titanium Leg Titanium Leg Titanium Leg > --- UTILITY (2) ------ Advanced Visual Processing Unit Advanced Targeting Computer > --- WEAPON (2) ------- Improved Assault Rifle Improved Assault Rifle > --- INVENTORY (3) ---- Titanium Leg Hacking Suite Mini Grenade Launcher Peak State ------------ > --- POWER ------------ Heavy Ion Engine > --- PROPULSION ------- Titanium Leg Titanium Leg Titanium Leg > --- UTILITY ---------- Advanced Visual Processing Unit Advanced Targeting Computer > --- WEAPON ----------- Improved Assault Rifle Improved Assault Rifle > --- INVENTORY -------- Titanium Leg Hacking Suite Mini Grenade Launcher [Rating: 24] Favorites ----------- Power Cooled Ion Engine Engine Cooled Ion Engine Propulsion Aluminum Leg Leg Aluminum Leg Utility Advanced Visual Processing Unit Processor Advanced Visual Processing Unit Protection Propulsion Shielding Weapon Improved Assault Rifle Energy Gun Medium Laser Ballistic Gun Improved Assault Rifle Launcher Mini Grenade Launcher Build | -11 -10 -9 -8 ------- Run | Scr Mat Mat Mat Slots Evolved 4 | . 3 1 . Power . | . . . . Propulsion 2 | . 2 . . Utility 1 | . 1 . . Weapon 1 | . . 1 . Parts Attached 23 | . 2 18 3 Power 3 | . . 3 . Engine 3 | . . 3 . Core . | . . . . Reactor . | . . . . Propulsion 7 | . 1 6 . Treads . | . . . . Leg 7 | . 1 6 . Wheel . | . . . . Hover . | . . . . Flight . | . . . . Utility 4 | . . 3 1 Device . | . . . . Storage . | . . . . Processor 3 | . . 2 1 Hackware . | . . . . Protection 1 | . . 1 . Artifact . | . . . . Weapon 9 | . 1 6 2 Energy Gun 1 | . . 1 . Energy Cannon . | . . . . Ballistic Gun 7 | . 1 5 1 Ballistic Cannon . | . . . . Launcher 1 | . . . 1 Special Weapon . | . . . . Impact Weapon . | . . . . Slashing Weapon . | . . . . Piercing Weapon . | . . . . Special Melee Weapon . | . . . . Unidentified Prototypes 3 | . . 3 . Parts Lost . | . . . . Power . | . . . . Propulsion . | . . . . Utility . | . . . . Weapon . | . . . . Highest Loss Streak . | . . . . Average Slot Usage (%) 86 | . 54 93 99 Engine 10 | . 14 9 12 Leg 34 | . 24 36 37 Processor 17 | . . 22 24 Energy Gun 3 | . 4 2 . Ballistic Gun 19 | . 10 21 24 Naked Turns . | . . . . Heaviest Build 14 | 5 5 14 14 Greatest Support 51 | 10 20 51 51 Greatest Overweight (x) . | . . . . Average Overweight (x) . | . . . . Largest Inventory Capacity 3 | . 2 3 3 Average Capacity 2 | . 1 2 3 Most Carried 3 | . 2 3 3 Average Carried 2 | . 1 2 2 Final Capacity 3 | . 2 3 3 Final Carried 3 | . 2 3 3 Class Distribution -------------------- 51% | Hacker-Mutant 48% | Mutant Dominant Class ---------------- Mutant | -10/Materials Hacker-Mutant | -9/Materials Hacker-Mutant | -8/Materials Resources | -11 -10 -9 -8 ----------- Run | Scr Mat Mat Mat Matter Collected 884 | 200 60 556 68 Remotely . | . . . . Salvage Created 1302 | . 129 1078 95 Parts 92 | . 3 70 19 Haulers Intercepted 3 | . . 3 . Recyclers Shooed 2 | . . 2 . Parts Field Recycled . | . . . . Retrieved Matter . | . . . . Parts Self-Destructed . | . . . . Prevented . | . . . . Kills | -11 -10 -9 -8 ------- Run | Scr Mat Mat Mat Combat Hostiles Destroyed 26 | . 2 16 8 Guns 24 | . 2 16 6 AOE 2 | . . . 2 Classes Destroyed 9 | . 1 7 1 Worker 3 | . . 2 1 Tunneler 1 | . . 1 . Hauler 3 | . . 3 . Recycler 1 | . . 1 . Operator 2 | . . 1 1 Watcher 2 | . . 2 . Swarmer 4 | . . . 4 Grunt 17 | . 2 11 4 Sentry 5 | . . 5 . Best Kill Streak 7 | . 2 4 7 Combat Bots Only 6 | . 2 3 6 Max Kills in Single Turn 3 | . 1 1 3 Gunslinging . | . . . . Exploded 2 | . . . 2 Melee . | . . . . Uniques/NPCs Destroyed . | . . . . Combat | -11 -10 -9 -8 -------- Run | Scr Mat Mat Mat Damage Taken 1533 | . 209 924 400 Core 1261 | . 180 766 315 Absorbed by Shields . | . . . . Redirected to Core 879 | . 83 528 268 Core Remaining (%) 64 | 100 70 22 . Volleys Fired 104 | . 12 70 22 Largest 2 | . 1 2 2 Hottest 70 | . 50 70 53 Shots Fired 194 | . 12 139 43 Gun 193 | . 12 139 42 Cannon . | . . . . Launcher 1 | . . . 1 Special . | . . . . Kinetic 165 | . 3 120 42 Thermal 28 | . 9 19 . Explosive 1 | . . . 1 Electromagnetic . | . . . . Robot Hit Streak 11 | . 6 8 11 Robot Miss Streak 3 | . 3 3 2 Penetration Max . | . . . . Secondary Targets 2 | . . 2 . Max Gunslinging Chain 1 | . . 1 . Shots Hit Robots 137 | . 7 94 36 Core Hits 68 | . 4 46 18 Critical Hits 1 | . . 1 . Critical Kills 1 | . . 1 . Critical Parts Destroyed . | . . . . Melee Attacks . | . . . . Impact . | . . . . Slashing . | . . . . Piercing . | . . . . Sneak Attacks . | . . . . Combat Hostiles . | . . . . Follow-up Attacks . | . . . . Damage Inflicted 2112 | . 100 1296 716 Guns 1905 | . 100 1296 509 Cannons . | . . . . Explosions 207 | . . . 207 Melee . | . . . . Ramming . | . . . . Kinetic 1645 | . . 1136 509 Thermal 260 | . 100 160 . Explosive 207 | . . . 207 Electromagnetic . | . . . . Impact . | . . . . Slashing . | . . . . Piercing . | . . . . Highest Corruption 4 | . . 4 . Average Corruption 4 | . . 4 . Corruption Purged . | . . . . Effects 24 | . . 24 . Message Errors 4 | . . 4 . Matter Fused 7 | . . 7 . Heat Flow Errors 1 | . . 1 . Energy Discharges 6 | . . 6 . Parts Rejected 1 | . . 1 . Data Loss (minor) 3 | . . 3 . Targeting Errors 1 | . . 1 . Weapon Failures 1 | . . 1 . Overload Shots . | . . . . Overflow Damage 10 | . . . 10 Projectiles . | . . . . Explosions 10 | . . . 10 Melee . | . . . . Knockbacks . | . . . . Impact . | . . . . Kinetic . | . . . . Secondary . | . . . . Self-Inflicted Damage . | . . . . Shots . | . . . . Rammed . | . . . . Targets Rammed . | . . . . Kicked . | . . . . Crushed . | . . . . Highest Temperature 220 | . 156 220 . Average Temperature 56 | . 83 34 . Received Heat Transfer 654 | . 75 399 180 Siege Activations . | . . . . Robots Corrupted . | . . . . Combat Hostiles . | . . . . Parts Fried . | . . . . Impact Corruptions . | . . . . Robots Melted . | . . . . Combat Hostiles . | . . . . Parts Melted 1 | . 1 . . Heat Transferred 777 | . 296 481 . Parts Sabotaged . | . . . . Parts Stolen . | . . . . Parts Stripped . | . . . . Power Chain Reactions . | . . . . Missiles Intercepted . | . . . . Alert | -11 -10 -9 -8 ------- Run | Scr Mat Mat Mat Peak Influence 316 | . 124 273 316 Average Influence 156 | . 55 182 184 Maximum Alert Level 1 | . . 1 1 Low Security (%) 68 | 100 100 62 45 Level 1 31 | . . 37 54 Level 2 . | . . . . Level 3 . | . . . . Level 4 . | . . . . Level 5 . | . . . . High Security . | . . . . Max Security . | . . . . Squads Dispatched 4 | . . 3 1 Investigation . | . . . . Extermination . | . . . . Reinforcement 4 | . . 3 1 Assault . | . . . . Garrison . | . . . . Intercept . | . . . . Construction Impeded . | . . . . Haulers Reinforced . | . . . . Stealth | -11 -10 -9 -8 --------- Run | Scr Mat Mat Mat Distress Signals 3 | . . 2 1 Communications Jammed . | . . . . Distress Signals . | . . . . Times Spotted 54 | . 9 32 13 Peak Tracking Total 6 | . 5 6 6 Tactical Retreats 1 | . . 1 . Traps | -11 -10 -9 -8 ------- Run | Scr Mat Mat Mat Traps Triggered 1 | . . 1 . Indirectly . | . . . . Trap Hack Attempts . | . . . . Triggered . | . . . . Disarmed . | . . . . Reprogrammed . | . . . . Reused . | . . . . Traps Extracted . | . . . . Installed . | . . . . Triggered . | . . . . Machines | -11 -10 -9 -8 ---------- Run | Scr Mat Mat Mat Machines Disabled 1 | . . . 1 Max in Single Turn 1 | . . . 1 Machines Sabotaged . | . . . . Garrisons Compromised . | . . . . Overloaded Fab Kills . | . . . . Fab Network Shutdowns . | . . . . Hacking | -11 -10 -9 -8 --------- Run | Scr Mat Mat Mat Machines Accessed 7 | . 2 5 . Terminals 5 | . 2 3 . Fabricators . | . . . . Repair Stations . | . . . . Recycling Units 1 | . . 1 . Scanalyzers 1 | . . 1 . Garrison Access . | . . . . Total Hacks 18 | . 5 13 . Successful 9 | . 1 8 . Failed 9 | . 4 5 . Catastrophic 1 | . 1 . . Database Lockouts . | . . . . Manual 13 | . 5 8 . Terminals 13 | . 5 8 . Fabricators . | . . . . Repair Stations . | . . . . Recycling Units 1 | . . 1 . Scanalyzers 4 | . . 4 . Garrison Access . | . . . . Terminal Hacks 1 | . . 1 . Terminal Index 1 | . . 1 . Fabricator Hacks . | . . . . Repair Station Hacks . | . . . . Recycling Unit Hacks 1 | . . 1 . Retrieve Components 1 | . . 1 . Scanalyzer 4 | . . 4 . Insert Component 2 | . . 2 . Analyze 2 | . . 2 . Garrison Access Hacks . | . . . . Unauthorized Hacks 9 | . 2 7 . Terminals 3 | . 1 2 . Botnet 3 | . 1 2 . Fabricators . | . . . . Repair Stations . | . . . . Recycling Units . | . . . . Scanalyzers . | . . . . Garrison Access . | . . . . Data Cores Recovered . | . . . . Used . | . . . . Hacking Detections 6 | . 2 4 . Full Trace Events . | . . . . Feedback Events . | . . . . Feedback Blocked . | . . . . Robot Schematics Acquired . | . . . . Robots Built . | . . . . Matter . | . . . . Time . | . . . . Total Robot Build Rating . | . . . . Part Schematics Acquired 2 | . . 2 . Parts Built . | . . . . Matter . | . . . . Time . | . . . . Total Part Build Rating . | . . . . Parts Repaired . | . . . . Time . | . . . . Parts Recycled . | . . . . Recycled Matter . | . . . . Retrieved Matter . | . . . . Retrieved Components 9 | . . 9 . Parts Scanalyzed 2 | . . 2 . Part Schematics Acquired 2 | . . 2 . Parts Damaged . | . . . . Bothacking | -11 -10 -9 -8 ------------ Run | Scr Mat Mat Mat Used RIF Installer . | . . . . Robots Hacked . | . . . . Non-combat . | . . . . Combat . | . . . . Robot Hacks Applied . | . . . . Relay Couplers Released . | . . . . Robots Rewired . | . . . . Allies Hacked . | . . . . Hacks Repelled . | . . . . Allies | -11 -10 -9 -8 -------- Run | Scr Mat Mat Mat Total Allies . | . . . . Largest Group . | . . . . Highest-Rated Group . | . . . . Highest-Rated Ally . | . . . . Total Orders . | . . . . Ally Attacks . | . . . . Total Damage . | . . . . Kills . | . . . . Allies Corrupted . | . . . . Allies Melted . | . . . . Intel | -11 -10 -9 -8 ------- Run | Scr Mat Mat Mat Robot Analysis Total . | . . . . Derelict Logs Recovered . | . . . . Drone Launches . | . . . . Drone Recoveries . | . . . . Exploration | -11 -10 -9 -8 ------------- Run | Scr Mat Mat Mat Turns Passed 1768 | 5 347 1271 145 Spaces Moved 1016 | 5 259 698 54 Core . | . . . . Treads . | . . . . Legs 1016 | 5 259 698 54 Wheels . | . . . . Hover . | . . . . Flight . | . . . . Fastest Speed 120 | 120 120 120 130 Average Speed 122 | 120 120 122 130 Slowest Speed 130 | 120 120 130 130 Overloaded Moves . | . . . . Propulsion Burnouts . | . . . . Robots Hopped . | . . . . Cave-ins Triggered . | . . . . Exploration Rate (%) 32 | 2 51 65 13 Regions Visited 3 Branch Regions . Pre-discovered Areas . | . . . . Known Exits Taken . | . . . . Unknown Exits Taken 3 | 1 1 1 . Scrap Searched . | . . . . Spaces Dug . | . . . . Terrain Destroyed 6 | . . . 6 Melee . | . . . . Projectile . | . . . . AOE 6 | . . . 6 Actions | -11 -10 -9 -8 --------- Run | Scr Mat Mat Mat Total 1349 | 4 282 978 85 Wait 166 | . 8 157 1 Move 1013 | 4 258 697 54 Hop . | . . . . Pick Up 11 | . 2 8 1 Fast Attach 17 | . 1 15 1 Attach 1 | . . 1 . Detach 3 | . . 2 1 Swap 5 | . 1 2 2 Drop 20 | . . 19 1 Fire 104 | . 12 70 22 Melee . | . . . . Ram . | . . . . Kick . | . . . . Crush . | . . . . Escape Stasis . | . . . . Rewire . | . . . . Trap . | . . . . Miscellaneous 9 | . . 7 2 Route ------- -11/Scrapyard -10/Materials (discovered 2 exits: *Mat / [*Min]) -9/Materials (discovered 2 exits: [*Mat] / [*Min]) -8/Materials History --------- Turn | Location | Event 1 | -11/Scrapyard | Discovered new exit (range 1) 6 | -11/Scrapyard | Entered Materials 21 | -10/Materials | Upgraded with Propulsion slot (x2) 21 | -10/Materials | Upgraded with Utility slot (x1) 226 | -10/Materials | Discovered new exit (range 6) 305 | -10/Materials | Build established: Mutant 335 | -10/Materials | Discovered new exit (range 15) 353 | -10/Materials | Entered another Materials area 355 | -9/Materials | Reached level 2 379 | -9/Materials | Upgraded with Weapon slot (x1) 614 | -9/Materials | Core integrity fell below 50% 787 | -9/Materials | Core integrity fell below 20% 823 | -9/Materials | Reached level 3 909 | -9/Materials | Discovered new exit (range 5) 1107 | -9/Materials | Discovered new exit (range 15) 1170 | -9/Materials | Build established: Hacker-Mutant 1624 | -9/Materials | Entered another Materials area 1625 | -8/Materials | Core integrity fell below 50% 1626 | -8/Materials | Reached level 4 1681 | -8/Materials | Core integrity fell below 20% 1683 | -8/Materials | Reached level 5 1769 | -8/Materials | Destroyed by G-47 Trooper with Particle Gun Last Messages --------------- 01726_ K-01 Serf collects debris. 01727_ U-05 Engineer builds a Wall. 01729_ K-01 Serf collects debris. 01730_ U-05 Engineer lays Concrete. 01730_ U-05 Engineer builds a Wall. 01730_ Acquired 68 matter. 01730_ K-01 Serf collects debris. 01736_ U-05 Engineer lays Concrete. 01737_ K-01 Serf collects debris. 01748_ G-50 Soldier destroyed. 01749_ K-01 Serf collects debris. 01751_ K-01 Serf cleans the Repair Station. 01751_ G-47 Trooper destroyed. 01752_ K-01 Serf collects debris. 01754_ K-01 Serf cleans the Repair Station. 01756_ K-01 Serf collects debris. 01762_ K-01 Serf cleans the Repair Station. 01762_ K-01 Serf collects debris. 01765_ W-25 Informer sends out distress signal. 01766_ K-01 Serf cleans the Repair Station. Map ----- +----------------------------------------------------+ | ?????????????????????????????????????????????????? | | ########?????????????????????????????????????????? | | #?????????????????????????????????????????? | | [[#?????????????????????????????????????????? | | [[########??????????????????????????????????? | | ## ???????????????????????????????????? | | ## #???????????????????????????????????? | | ## #???################+##?????????????? | | ## #???# = ?????????????? | | ## #???# ??????????????? | | ##+###### ##### ??????????????? | | """ """ """? ?????????????? | | ########### """ """ """ #????????????? | | #?????????# """ """ """ ####?????????? | | ##+#######????+ ?????????? | | "[ #????#### ! ????????? | | % """ #???????# = ?????????? | | * """ #????#### a %##########?????????????? | | """ #????+ %*##?????????????????????? | | #????#######!=[ ##?????????????????????? | | ##########??????????# =[ ##########?????????????? | | ????????????????????# # """ ?????????????? | | ????????????????????# # """" #????????????? | | ????????????????????# [!#%"""" #????????????? | | ????????????????????# %=g% #????????????? | | ????????????????????# m@# = #????????????? | | ????????????????????# # #????????????? | | ????????????????????# #? =#????????????? | | ????????????????????# #? #????????????? | | ????????????????????# k #??#+######????????????? | | ????????????????????# #??? ?????????????????? | | ????????????????????+ #???? #????????????????? | | ??????????????????? # k?????#????????????????? | | ?????????????????? # k ??????????????????????? | | ?????????????????##?# """ ?????????????????????? | | ???????????????????? "R ?????????????????????? | | ???????????????????? """ ????????????????????? | | ??????????????????? ????????????????????? | | ??????????????????? ] ????????????????????? | | ?????????????????? ?? w ?????????????????????? | | ??????????????????#####??###?????????????????????? | | ?????????????????????????????????????????????????? | | ?????????????????????????????????????????????????? | | ?????????????????????????????????????????????????? | | ?????????????????????????????????????????????????? | | ?????????????????????????????????????????????????? | | ?????????????????????????????????????????????????? | | ?????????????????????????????????????????????????? | | ?????????????????????????????????????????????????? | | ?????????????????????????????????????????????????? | +----------------------------------------------------+ Best States ------------- Heat Dissipation 31 Energy Generation 14 Energy Capacity 280 Matter Stores 350 Matter Capacity 350 Sight Range 20 Robot Scan Range 2 Terrain Scan Density 10 Resistance: KI 10 Resistance: TH 10 Propulsion Shielding 33 Evasion (%) 40 Targeting Accuracy 8 Offensive Hacking 15 Defensive Hacking 5 Item Schematics ----------------- Imp. Assault Rifle | -9/Materials | Scanalyzed Grenade Launcher | -9/Materials | Scanalyzed Robot Schematics ------------------ None Fabricated ------------ Nothing Alien Tech Used ----------------- None Achievements -------------- None Challenges ------------ None RPGLIKE | -11 -10 -9 -8 --------- Run | Scr Mat Mat Mat Levels Raised 4 | . . 2 2 XP Earned 9600 | 3000 320 3755 2525 XP Spent 7485 | . 3000 2980 1505 Upgrades 28 | . 8 14 6 Propulsion Slot 2 | . 2 . . Utility Slot 1 | . 1 . . Weapon Slot 1 | . . 1 . Core Integrity 9 | . . 8 1 Heat Dissipation 1 | . . 1 . Matter Storage 1 | . 1 . . Inventory Capacity 3 | . 2 1 . Sensor Range 1 | . 1 . . Ranged Accuracy 1 | . . . 1 Hack Attack % 3 | . 1 2 . Hack Defense % 1 | . . 1 . KI Resistance % 2 | . . . 2 TH Resistance % 2 | . . . 2 Protomatter Created 358 | . . 159 199 Integrity Restored 201 | . . 168 33 Core 201 | . . 168 33 Protomatter Decayed 143 | . . 143 . Game ------ Seed FluxRemoteSword Manual? 0 Play Time 00:22:49 Cumulative 51.7 hours Start 2019.12.27 @ 14:32:55 End 2019.12.27 @ 14:57:28 Sessions 1 Manual Loads 0 Difficulty Rogue Special Mode Winter2019/RPGLIKE Game No. 51 Rogue 51 Adventurer 0 Explorer 0 Win Type - Total 0 Types 0/0/0/0/0/0/0 Lore% 23 Gallery% 43 Achievement% 28 Wizard Run 0 Options --------- ASCII 0 Keyboard 1 Movement Numpad Keybinds 0 Fullscreen 2 Font 18/SmallcapsGlow Map View 76x50 Tactical HUD 1 Map Filters NONE Filters NONE Steam 1 RUN: ed7edb44-4428-4dfe-ae05-f407fa551e43